[Event "Latvijas 2022. gada jauniešu čempionāta fināls"]
[Site "Riga, Latvia"]
[Date "2022.06.13"]
[Round "2.7"]
[White "Kuznecova, Marija"]
[Black "Mierina, Lauma"]
[Result "1-0"]
[TimeControl "3600+30"]
[WhiteElo "1783"]
[BlackElo "1195"]

1. e4 {[%clk 01:00:59]} e5 {[%clk 01:00:49]} {[%emt 00:00:12]} 2. Nf3 {[%clk
01:01:24]} {[%emt 00:00:04]} Nc6 {[%clk 01:01:13]} {[%emt 00:00:06]} 3. d4
{[%clk 01:01:48]} {[%emt 00:00:06]} exd4 {[%clk 01:01:24]} {[%emt 00:00:19]} 4.
Nxd4 {[%clk 01:02:14]} {[%emt 00:00:04]} Nf6 {[%clk 01:01:41]} {[%emt
00:00:13]} 5. Nxc6 {[%clk 01:02:35]} {[%emt 00:00:09]} bxc6 {[%clk 01:02:01]}
{[%emt 00:00:09]} 6. e5 {[%clk 01:03:02]} {[%emt 00:00:03]} Qe7 {[%clk
01:02:17]} {[%emt 00:00:15]} 7. Qe2 {[%clk 01:03:29]} {[%emt 00:00:03]} Nd5
{[%clk 01:02:34]} {[%emt 00:00:13]} 8. c4 {[%clk 01:03:54]} {[%emt 00:00:05]}
Ba6 {[%clk 01:02:42]} {[%emt 00:00:22]} 9. Nd2 {[%clk 01:04:19]} {[%emt
00:00:05]} g6 {[%clk 01:01:44]} {[%emt 00:01:28]} 10. Ne4 {[%clk 01:04:40]}
{[%emt 00:00:09]} Bg7 {[%clk 01:00:58]} {[%emt 00:01:15]} 11. Bg5 {[%clk
01:04:44]} {[%emt 00:00:26]} Qb4+ {[%clk 00:55:21]} {[%emt 00:06:08]} 12. Qd2
{[%clk 01:04:46]} {[%emt 00:00:28]} Qxd2+ {[%clk 00:54:10]} {[%emt 00:01:42]}
13. Kxd2 {[%clk 01:01:43]} {[%emt 00:03:32]} Nb6 {[%clk 00:47:03]} {[%emt
00:07:38]} 14. b3 {[%clk 00:59:10]} {[%emt 00:03:02]} Bxe5 {[%clk 00:39:43]}
{[%emt 00:07:50]} 15. Re1 {[%clk 00:58:34]} {[%emt 00:01:06]} O-O {[%clk
00:38:32]} {[%emt 00:01:41]} 16. Nc5 {[%clk 00:55:32]} {[%emt 00:03:32]} f6
{[%clk 00:36:59]} {[%emt 00:02:03]} 17. Nxa6 {[%clk 00:54:15]} {[%emt
00:01:47]} Rae8 {[%clk 00:36:06]} {[%emt 00:01:23]} 18. Be3 {[%clk 00:54:18]}
{[%emt 00:00:26]} f5 {[%clk 00:35:34]} {[%emt 00:01:03]} 19. f4 {[%clk
00:54:15]} {[%emt 00:00:33]} Bf6 {[%clk 00:35:41]} {[%emt 00:00:23]} 20. Nxc7
{[%clk 00:51:34]} {[%emt 00:03:10]} Re7 {[%clk 00:35:05]} {[%emt 00:01:06]} 21.
c5 {[%clk 00:48:20]} {[%emt 00:03:45]} Nd5 {[%clk 00:35:01]} {[%emt 00:00:34]}
22. Nxd5 {[%clk 00:48:05]} {[%emt 00:00:45]} cxd5 {[%clk 00:35:17]} {[%emt
00:00:14]} 23. Bd3 {[%clk 00:47:37]} {[%emt 00:00:59]} Rfe8 {[%clk 00:35:08]}
{[%emt 00:00:38]} 24. Bf2 {[%clk 00:47:16]} {[%emt 00:00:51]} a5 {[%clk
00:32:26]} {[%emt 00:03:12]} 25. Rxe7 {[%clk 00:46:15]} {[%emt 00:01:30]} Rxe7
{[%clk 00:32:38]} {[%emt 00:00:20]} 26. Re1 {[%clk 00:46:25]} {[%emt 00:00:19]}
Rxe1 {[%clk 00:32:50]} {[%emt 00:00:19]} 27. Kxe1 {[%clk 00:46:47]} {[%emt
00:00:07]} Bc3+ {[%clk 00:33:01]} {[%emt 00:00:19]} 28. Ke2 {[%clk 00:46:55]}
{[%emt 00:00:22]} Bb4 {[%clk 00:33:20]} {[%emt 00:00:11]} 29. Bb5 {[%clk
00:47:06]} {[%emt 00:00:19]} Kf7 {[%clk 00:33:15]} {[%emt 00:00:35]} 30. Bxd7
{[%clk 00:47:26]} {[%emt 00:00:10]} Ke7 {[%clk 00:33:28]} {[%emt 00:00:17]} 31.
Bc6 {[%clk 00:47:19]} {[%emt 00:00:36]} Ke6 {[%clk 00:33:09]} {[%emt 00:00:49]}
32. Kd3 {[%clk 00:47:41]} {[%emt 00:00:08]} h6 {[%clk 00:32:50]} {[%emt
00:00:50]} 33. Kd4 {[%clk 00:48:02]} {[%emt 00:00:09]} g5 {[%clk 00:32:38]}
{[%emt 00:00:42]} 34. fxg5 {[%clk 00:47:59]} {[%emt 00:00:32]} hxg5 {[%clk
00:32:58]} {[%emt 00:00:11]} 35. Bxd5+ {[%clk 00:48:27]} {[%emt 00:00:03]} Kd7
{[%clk 00:33:02]} {[%emt 00:00:25]} 36. Ke5 {[%clk 00:48:44]} {[%emt 00:00:13]}
1-0

[Event "Latvijas 2022. gada jauniešu čempionāta fināls"]
[Site "Riga, Latvia"]
[Date "2022.06.13"]
[Round "2.11"]
[White "Skreitule, Undine"]
[Black "Maklakova, Naomi"]
[Result "0-1"]
[TimeControl "3600+30"]
[WhiteElo "1192"]
[BlackElo "1488"]

1. d4 {[%clk 01:00:59]} d5 {[%clk 01:00:47]} {[%emt 00:00:13]} 2. Nf3 {[%clk
01:01:21]} {[%emt 00:00:09]} Nf6 {[%clk 01:01:02]} {[%emt 00:00:14]} 3. Bf4
{[%clk 01:01:36]} {[%emt 00:00:16]} Bf5 {[%clk 01:01:22]} {[%emt 00:00:10]} 4.
e3 {[%clk 01:01:21]} {[%emt 00:00:44]} e6 {[%clk 01:01:44]} {[%emt 00:00:08]} 5.
c4 {[%clk 01:01:29]} {[%emt 00:00:23]} Bd6 {[%clk 01:01:44]} {[%emt 00:00:29]}
6. Bg3 {[%clk 01:01:33]} {[%emt 00:00:26]} c6 {[%clk 01:01:44]} {[%emt
00:00:30]} 7. Nc3 {[%clk 01:01:21]} {[%emt 00:00:42]} Bg6 {[%clk 01:01:37]}
{[%emt 00:00:37]} 8. Ne5 {[%clk 01:00:01]} {[%emt 00:01:51]} Ne4 {[%clk
00:59:53]} {[%emt 00:02:13]} 9. Bd3 {[%clk 00:56:01]} {[%emt 00:04:30]} f5
{[%clk 00:58:09]} {[%emt 00:02:14]} 10. c5 {[%clk 00:53:17]} {[%emt 00:03:15]}
Nxg3 {[%clk 00:53:36]} {[%emt 00:05:03]} 11. hxg3 {[%clk 00:53:03]} {[%emt
00:00:44]} Bxe5 {[%clk 00:53:55]} {[%emt 00:00:11]} 12. dxe5 {[%clk 00:53:07]}
{[%emt 00:00:26]} Nd7 {[%clk 00:54:16]} {[%emt 00:00:09]} 13. f4 {[%clk
00:52:50]} {[%emt 00:00:47]} Nxc5 {[%clk 00:54:33]} {[%emt 00:00:13]} 14. Be2
{[%clk 00:52:40]} {[%emt 00:00:39]} Qb6 {[%clk 00:53:16]} {[%emt 00:01:47]} 15.
Rb1 {[%clk 00:51:44]} {[%emt 00:01:26]} O-O-O {[%clk 00:52:21]} {[%emt
00:01:25]} 16. Qd4 {[%clk 00:51:24]} {[%emt 00:00:50]} Ne4 {[%clk 00:47:07]}
{[%emt 00:05:44]} 17. Nxe4 {[%clk 00:51:06]} {[%emt 00:00:49]} fxe4 {[%clk
00:46:21]} {[%emt 00:01:16]} 18. a3 {[%clk 00:50:09]} {[%emt 00:01:27]} Kb8
{[%clk 00:40:18]} {[%emt 00:06:33]} 19. b4 {[%clk 00:48:44]} {[%emt 00:01:55]}
Rc8 {[%clk 00:39:43]} {[%emt 00:01:05]} 20. Qxb6 {[%clk 00:48:06]} {[%emt
00:01:07]} axb6 {[%clk 00:40:03]} {[%emt 00:00:11]} 21. a4 {[%clk 00:48:01]}
{[%emt 00:00:35]} Rhd8 {[%clk 00:39:48]} {[%emt 00:00:44]} 22. Rd1 {[%clk
00:46:13]} {[%emt 00:02:18]} c5 {[%clk 00:39:29]} {[%emt 00:00:49]} 23. bxc5
{[%clk 00:44:30]} {[%emt 00:02:13]} bxc5 {[%clk 00:39:51]} {[%emt 00:00:09]} 24.
Kf2 {[%clk 00:44:44]} {[%emt 00:00:15]} h6 {[%clk 00:30:00]} {[%emt 00:10:21]}
25. a5 {[%clk 00:44:44]} {[%emt 00:00:31]} d4 {[%clk 00:29:56]} {[%emt
00:00:33]} 26. Bb5 {[%clk 00:44:16]} {[%emt 00:00:58]} d3 {[%clk 00:27:18]}
{[%emt 00:03:09]} 27. a6 {[%emt 00:00:32]} c4 {[%clk 00:24:20]} {[%emt
00:03:27]} 28. axb7 {[%clk 00:44:09]} {[%emt 00:00:35]} Rc5 {[%clk 00:24:39]}
{[%emt 00:00:11]} 29. Bxc4 {[%clk 00:40:44]} {[%emt 00:03:54]} Rxc4 {[%clk
00:24:57]} {[%emt 00:00:14]} 30. Rd2 {[%clk 00:41:09]} {[%emt 00:00:05]} Rd7
{[%clk 00:22:25]} {[%emt 00:03:02]} 31. g4 {[%clk 00:41:07]} {[%emt 00:00:31]}
Rxb7 {[%clk 00:22:47]} {[%emt 00:00:09]} 32. Rhd1 {[%clk 00:41:05]} {[%emt
00:00:31]} h5 {[%clk 00:22:22]} {[%emt 00:00:55]} 33. g5 {[%clk 00:41:15]}
{[%emt 00:00:20]} Bf5 {[%clk 00:22:40]} {[%emt 00:00:12]} 34. g3 {[%clk
00:41:12]} {[%emt 00:00:33]} Bg4 {[%clk 00:22:58]} {[%emt 00:00:12]} 35. Ra1
{[%clk 00:41:19]} {[%emt 00:00:23]} Rcb4 {[%clk 00:21:58]} {[%emt 00:01:30]} 36.
Raa2 {[%clk 00:41:21]} {[%emt 00:00:27]} Rb1 {[%clk 00:21:51]} {[%emt
00:00:37]} 37. Kg2 {[%clk 00:41:09]} {[%emt 00:00:43]} Bf3+ {[%clk 00:22:06]}
{[%emt 00:00:16]} 38. Kf2 {[%clk 00:41:25]} {[%emt 00:00:13]} Rh1 {[%clk
00:22:25]} {[%emt 00:00:11]} 39. Ra1 {[%clk 00:40:57]} {[%emt 00:00:58]} Rxa1
{[%clk 00:22:26]} {[%emt 00:00:30]} 40. g6 {[%clk 00:41:07]} {[%emt 00:00:19]}
Rbb1 {[%clk 00:22:35]} {[%emt 00:00:21]} 41. Rxd3 {[%clk 00:41:11]} {[%emt
00:00:27]} Rf1# {[%clk 00:22:42]} {[%emt 00:00:22]} 0-1

[Event "Latvijas 2022. gada jauniešu čempionāta fināls"]
[Site "Riga, Latvia"]
[Date "2022.06.13"]
[Round "3.1"]
[White "Savicevs, Arsenijs"]
[Black "Vingris, Mikelis"]
[Result "1/2-1/2"]
[TimeControl "3600+30"]
[WhiteElo "1961"]
[BlackElo "1781"]

1. Nf3 {[%clk 01:00:53]} {[%emt 00:00:05]} c5 {[%clk 01:00:53]} {[%emt
00:00:07]} 2. c4 {[%clk 01:01:18]} {[%emt 00:00:04]} Nc6 {[%clk 01:01:18]}
{[%emt 00:00:06]} 3. b3 {[%clk 01:01:42]} {[%emt 00:00:05]} e5 {[%clk
01:00:49]} {[%emt 00:01:00]} 4. Nc3 {[%clk 01:01:58]} {[%emt 00:00:14]} d6
{[%clk 01:00:55]} {[%emt 00:00:24]} 5. g3 {[%clk 01:00:38]} {[%emt 00:01:51]}
g6 {[%clk 01:00:29]} {[%emt 00:00:57]} 6. Bg2 {[%clk 01:00:31]} {[%emt
00:00:36]} Bg7 {[%clk 01:00:31]} {[%emt 00:00:29]} 7. O-O {[%clk 01:00:50]}
{[%emt 00:00:10]} Nge7 {[%clk 01:00:11]} {[%emt 00:00:51]} 8. Bb2 {[%clk
01:01:08]} {[%emt 00:00:12]} O-O {[%clk 01:00:21]} {[%emt 00:00:21]} 9. a3
{[%clk 01:01:11]} {[%emt 00:00:27]} h6 {[%clk 00:59:09]} {[%emt 00:01:43]} 10.
Qc2 {[%clk 01:01:03]} {[%emt 00:00:37]} Be6 {[%clk 00:57:45]} {[%emt 00:01:54]}
11. Rab1 {[%clk 01:01:15]} {[%emt 00:00:18]} Qd7 {[%clk 00:55:58]} {[%emt
00:02:18]} 12. Rfd1 {[%clk 00:57:32]} {[%emt 00:04:11]} f5 {[%clk 00:54:23]}
{[%emt 00:02:07]} 13. d3 {[%clk 00:57:52]} {[%emt 00:00:09]} Rac8 {[%clk
00:53:10]} {[%emt 00:01:44]} 14. Bc1 {[%clk 00:55:24]} {[%emt 00:02:58]} g5
{[%clk 00:45:29]} {[%emt 00:08:12]} 15. b4 {[%clk 00:55:11]} {[%emt 00:00:43]}
Nd4 {[%clk 00:41:00]} {[%emt 00:05:00]} 16. Qb2 {[%clk 00:49:25]} {[%emt
00:06:15]} Nxf3+ {[%clk 00:32:38]} {[%emt 00:08:52]} 17. Bxf3 {[%clk 00:49:35]}
{[%emt 00:00:19]} b6 {[%clk 00:32:41]} {[%emt 00:00:28]} 18. Qb3 {[%clk
00:47:18]} {[%emt 00:02:47]} g4 {[%clk 00:29:22]} {[%emt 00:03:49]} 19. Bg2
{[%clk 00:47:00]} {[%emt 00:00:45]} h5 {[%clk 00:28:57]} {[%emt 00:00:58]} 20.
Qa4 {[%clk 00:47:06]} {[%emt 00:00:24]} Qxa4 {[%clk 00:26:07]} {[%emt
00:03:20]} 21. Nxa4 {[%clk 00:47:31]} {[%emt 00:00:03]} f4 {[%clk 00:23:18]}
{[%emt 00:03:22]} 22. Be4 {[%clk 00:45:42]} {[%emt 00:02:16]} Nc6 {[%clk
00:21:05]} {[%emt 00:02:45]} 23. Nc3 {[%clk 00:42:28]} {[%emt 00:03:44]} Nd4
{[%clk 00:20:20]} {[%emt 00:01:15]} 24. e3 {[%clk 00:39:59]} {[%emt 00:02:58]}
fxe3 {[%clk 00:19:42]} {[%emt 00:01:09]} 25. fxe3 {[%clk 00:39:53]} {[%emt
00:00:35]} Nf3+ {[%clk 00:18:44]} {[%emt 00:01:29]} 26. Bxf3 {[%clk 00:39:31]}
{[%emt 00:00:49]} Rxf3 {[%clk 00:17:41]} {[%emt 00:01:36]} 27. Nb5 {[%clk
00:38:28]} {[%emt 00:01:32]} cxb4 {[%clk 00:11:46]} {[%emt 00:06:26]} 28. axb4
{[%clk 00:38:21]} {[%emt 00:00:36]} d5 {[%clk 00:09:48]} {[%emt 00:02:29]} 29.
Nxa7 {[%clk 00:31:45]} {[%emt 00:07:05]} Ra8 {[%clk 00:07:58]} {[%emt
00:02:22]} 30. cxd5 {[%clk 00:31:25]} {[%emt 00:00:49]} Bxd5 {[%clk 00:07:56]}
{[%emt 00:00:32]} 31. Nb5 {[%clk 00:31:47]} {[%emt 00:00:07]} Rc8 {[%clk
00:05:11]} {[%emt 00:03:16]} 32. Bd2 {[%clk 00:17:10]} {[%emt 00:15:06]} Rcf8
{[%clk 00:02:11]} {[%emt 00:03:31]} 33. Nc3 {[%clk 00:16:22]} {[%emt 00:01:17]}
Bb7 {[%clk 00:02:02]} {[%emt 00:00:40]} 34. Bc1 {[%clk 00:05:20]} {[%emt
00:11:32]} Bh6 {[%clk 00:01:53]} {[%emt 00:00:39]} 35. e4 {[%clk 00:05:31]}
{[%emt 00:00:18]} Bxc1 {[%clk 00:01:57]} {[%emt 00:00:26]} 36. Rbxc1 {[%clk
00:05:57]} {[%emt 00:00:04]} Rd8 {[%clk 00:02:07]} {[%emt 00:00:21]} 37. Na4
{[%clk 00:05:40]} {[%emt 00:00:46]} Rfxd3 {[%clk 00:02:15]} {[%emt 00:00:23]}
38. Rxd3 {[%clk 00:06:06]} {[%emt 00:00:03]} Rxd3 {[%clk 00:02:44]} {[%emt
00:00:02]} 39. Nxb6 {[%clk 00:05:48]} {[%emt 00:00:48]} Bxe4 {[%clk 00:02:08]}
{[%emt 00:01:07]} 40. Re1 {[%clk 00:04:03]} {[%emt 00:02:14]} Rd4 {[%clk
00:00:58]} {[%emt 00:01:41]} 41. b5 {[%clk 00:04:23]} {[%emt 00:00:10]} Rb4
{[%clk 00:01:03]} {[%emt 00:00:25]} 42. Nc8 {[%clk 00:03:28]} {[%emt 00:01:24]}
Bd3 {[%clk 00:00:58]} {[%emt 00:00:35]} 43. Ne7+ {[%emt 00:01:23]} Kg7 {[%clk
00:00:49]} {[%emt 00:00:37]} 44. Rxe5 {[%clk 00:01:27]} {[%emt 00:01:40]} Rxb5
{[%clk 00:01:01]} {[%emt 00:00:19]} 45. Rxb5 {[%clk 00:01:43]} {[%emt
00:00:14]} Bxb5 {[%clk 00:01:24]} {[%emt 00:00:06]} 46. Kf2 {[%clk 00:02:04]}
{[%emt 00:00:09]} Kf6 {[%clk 00:01:21]} {[%emt 00:00:33]} 47. Nd5+ {[%clk
00:02:24]} {[%emt 00:00:11]} Kg5 {[%clk 00:01:36]} {[%emt 00:00:15]} 48. Nf4
{[%clk 00:00:56]} {[%emt 00:01:57]} h4 {[%clk 00:01:07]} {[%emt 00:01:01]} 49.
Ne6+ {[%clk 00:01:20]} {[%emt 00:00:04]} Kh5 {[%clk 00:01:15]} {[%emt
00:00:23]} 50. Ke3 {[%clk 00:01:12]} {[%emt 00:00:38]} hxg3 {[%clk 00:01:41]}
{[%emt 00:00:05]} 51. hxg3 {[%clk 00:01:39]} Bc4 {[%clk 00:01:39]} {[%emt
00:00:32]} 52. Nc5 {[%clk 00:02:00]} {[%emt 00:00:11]} 1/2-1/2

[Event "Latvijas 2022. gada jauniešu čempionāta fināls"]
[Site "Riga, Latvia"]
[Date "2022.06.13"]
[Round "3.2"]
[White "Adamovics, Aleksejs"]
[Black "Sokolovskis, Pavels"]
[Result "1-0"]
[TimeControl "3600+30"]
[WhiteElo "1922"]
[BlackElo "1572"]

1. d4 {[%clk 01:00:59]} d5 {[%clk 01:00:53]} {[%emt 00:00:08]} 2. c4 {[%clk
01:01:23]} {[%emt 00:00:05]} e6 {[%clk 01:01:19]} {[%emt 00:00:05]} 3. Nc3
{[%clk 01:01:42]} {[%emt 00:00:10]} a6 {[%clk 01:01:35]} {[%emt 00:00:14]} 4.
cxd5 {[%clk 01:01:35]} {[%emt 00:00:37]} exd5 {[%clk 01:02:00]} {[%emt
00:00:05]} 5. Nf3 {[%clk 01:01:22]} {[%emt 00:00:42]} c6 {[%clk 01:02:04]}
{[%emt 00:00:27]} 6. Bf4 {[%clk 00:58:33]} {[%emt 00:03:18]} Nf6 {[%clk
01:01:47]} {[%emt 00:00:47]} 7. e3 {[%clk 00:58:35]} {[%emt 00:00:28]} Bg4
{[%clk 01:01:47]} {[%emt 00:00:30]} 8. Be2 {[%clk 00:58:19]} {[%emt 00:00:46]}
Be7 {[%clk 01:00:12]} {[%emt 00:02:04]} 9. O-O {[%clk 00:58:35]} {[%emt
00:00:15]} O-O {[%clk 01:00:31]} {[%emt 00:00:11]} 10. Qb3 {[%clk 00:56:18]}
{[%emt 00:02:46]} Qc8 {[%clk 00:55:46]} {[%emt 00:05:17]} 11. Rac1 {[%clk
00:52:18]} {[%emt 00:04:29]} Nbd7 {[%clk 00:54:12]} {[%emt 00:02:05]} 12. h3
{[%clk 00:51:11]} {[%emt 00:01:36]} Be6 {[%clk 00:53:46]} {[%emt 00:00:57]} 13.
Ne5 {[%clk 00:46:41]} {[%emt 00:04:59]} Nxe5 {[%clk 00:46:19]} {[%emt
00:07:57]} 14. Bxe5 {[%clk 00:43:31]} {[%emt 00:03:41]} Ne4 {[%clk 00:34:27]}
{[%emt 00:12:21]} 15. Nxe4 {[%clk 00:36:53]} {[%emt 00:07:07]} dxe4 {[%clk
00:34:44]} {[%emt 00:00:13]} 16. Bc4 {[%clk 00:36:31]} {[%emt 00:00:52]} Bxc4
{[%clk 00:34:17]} {[%emt 00:00:57]} 17. Rxc4 {[%clk 00:36:21]} {[%emt
00:00:40]} Qd7 {[%clk 00:32:09]} {[%emt 00:02:38]} 18. Rd1 {[%clk 00:32:18]}
{[%emt 00:04:31]} Rac8 {[%clk 00:23:59]} {[%emt 00:08:41]} 19. Rc2 {[%clk
00:24:28]} {[%emt 00:08:19]} h6 {[%clk 00:13:26]} {[%emt 00:11:04]} 20. Rcd2
{[%clk 00:22:26]} {[%emt 00:02:32]} Bh4 {[%clk 00:10:10]} {[%emt 00:03:46]} 21.
g3 {[%clk 00:11:24]} {[%emt 00:11:33]} Qxh3 {[%clk 00:06:02]} {[%emt 00:04:38]}
22. gxh4 {[%clk 00:11:13]} {[%emt 00:00:41]} Qxh4 {[%clk 00:06:25]} {[%emt
00:00:07]} 23. Qc4 {[%clk 00:10:03]} {[%emt 00:01:42]} Qg4+ {[%clk 00:06:24]}
{[%emt 00:00:30]} 24. Bg3 {[%clk 00:09:29]} {[%emt 00:01:03]} h5 {[%clk
00:05:38]} {[%emt 00:01:16]} 25. Qe2 {[%clk 00:08:55]} {[%emt 00:01:03]} Qxe2
{[%clk 00:03:56]} {[%emt 00:02:14]} 26. Rxe2 {[%clk 00:09:21]} {[%emt
00:00:04]} Rfd8 {[%clk 00:03:10]} {[%emt 00:01:16]} 27. Rc2 {[%clk 00:08:45]}
{[%emt 00:01:04]} f6 {[%clk 00:02:59]} {[%emt 00:00:42]} 28. Kf1 {[%clk
00:07:09]} {[%emt 00:02:06]} g5 {[%clk 00:03:13]} {[%emt 00:00:16]} 29. Ke2
{[%clk 00:07:22]} {[%emt 00:00:17]} h4 {[%clk 00:03:05]} {[%emt 00:00:38]} 30.
Bh2 {[%clk 00:07:50]} {[%emt 00:00:02]} Kf7 {[%clk 00:03:21]} {[%emt 00:00:14]}
31. Rdc1 {[%clk 00:07:29]} {[%emt 00:00:51]} Rd5 {[%clk 00:03:26]} {[%emt
00:00:25]} 32. Rc5 {[%clk 00:07:51]} {[%emt 00:00:09]} Rcd8 {[%clk 00:03:12]}
{[%emt 00:00:45]} 33. b4 {[%clk 00:05:52]} {[%emt 00:02:27]} Ke6 {[%clk
00:03:18]} {[%emt 00:00:25]} 34. f3 {[%clk 00:04:04]} {[%emt 00:02:19]} exf3+
{[%clk 00:02:48]} {[%emt 00:01:00]} 35. Kxf3 {[%clk 00:04:30]} {[%emt
00:00:04]} f5 {[%clk 00:02:34]} {[%emt 00:00:43]} 36. Be5 {[%clk 00:03:28]}
{[%emt 00:01:32]} Rxc5 {[%clk 00:02:15]} {[%emt 00:00:49]} 37. bxc5 {[%clk
00:03:44]} {[%emt 00:00:15]} Rd7 {[%clk 00:01:42]} {[%emt 00:01:03]} 38. Rg1
{[%clk 00:02:50]} {[%emt 00:01:22]} g4+ {[%clk 00:01:46]} {[%emt 00:00:27]} 39.
Kf4 {[%clk 00:03:14]} {[%emt 00:00:06]} g3 {[%clk 00:01:03]} {[%emt 00:01:12]}
40. Kf3 {[%clk 00:03:08]} {[%emt 00:00:36]} Rh7 {[%clk 00:00:48]} {[%emt
00:00:47]} 41. Rh1 {[%clk 00:03:33]} {[%emt 00:00:04]} 1-0

[Event "Latvijas 2022. gada jauniešu čempionāta fināls"]
[Site "Riga, Latvia"]
[Date "2022.06.13"]
[Round "3.3"]
[White "Steinbergs, Raivo"]
[Black "Bogdanovics, Kirills"]
[Result "0-1"]
[TimeControl "3600+30"]
[WhiteElo "1397"]
[BlackElo "1785"]

1. d4 {[%clk 01:00:58]} d5 {[%clk 01:00:55]} {[%emt 00:00:05]} 2. c4 {[%clk
01:01:18]} {[%emt 00:00:11]} c6 {[%clk 01:01:21]} {[%emt 00:00:04]} 3. Nc3
{[%clk 01:01:26]} {[%emt 00:00:21]} e6 {[%clk 01:01:47]} {[%emt 00:00:05]} 4.
Nf3 {[%clk 01:00:12]} {[%emt 00:01:43]} Nf6 {[%clk 01:02:11]} {[%emt 00:00:06]}
5. Bf4 {[%clk 01:00:24]} {[%emt 00:00:16]} Bd6 {[%clk 01:01:17]} {[%emt
00:01:25]} 6. Bg3 {[%clk 00:59:59]} {[%emt 00:00:55]} O-O {[%clk 01:01:36]}
{[%emt 00:00:12]} 7. e3 {[%clk 01:00:08]} {[%emt 00:00:20]} Qe7 {[%clk
00:59:42]} {[%emt 00:02:24]} 8. cxd5 {[%clk 01:00:06]} {[%emt 00:00:32]} exd5
{[%clk 01:00:05]} {[%emt 00:00:07]} 9. Bd3 {[%clk 00:58:34]} {[%emt 00:02:01]}
Bg4 {[%clk 00:59:39]} {[%emt 00:00:56]} 10. Bh4 {[%clk 00:58:22]} {[%emt
00:00:39]} Nbd7 {[%clk 00:59:55]} {[%emt 00:00:18]} 11. Qc2 {[%clk 00:57:14]}
{[%emt 00:01:38]} Bh5 {[%clk 00:57:18]} {[%emt 00:03:06]} 12. Bxh7+ {[%clk
00:57:26]} {[%emt 00:00:18]} Kh8 {[%clk 00:57:34]} {[%emt 00:00:15]} 13. Bd3
{[%clk 00:57:29]} {[%emt 00:00:27]} Bb4 {[%clk 00:55:28]} {[%emt 00:02:36]} 14.
Nd2 {[%clk 00:54:09]} {[%emt 00:03:49]} Qd6 {[%clk 00:53:52]} {[%emt 00:02:07]}
15. a3 {[%clk 00:53:50]} {[%emt 00:00:49]} Bxc3 {[%clk 00:54:11]} {[%emt
00:00:11]} 16. bxc3 {[%clk 00:54:06]} {[%emt 00:00:14]} Rfe8 {[%clk 00:52:06]}
{[%emt 00:02:34]} 17. O-O {[%clk 00:53:50]} {[%emt 00:00:45]} g6 {[%clk
00:41:26]} {[%emt 00:11:10]} 18. Rfe1 {[%clk 00:51:59]} {[%emt 00:02:19]} Kg7
{[%clk 00:41:41]} {[%emt 00:00:18]} 19. e4 {[%clk 00:50:47]} {[%emt 00:01:42]}
dxe4 {[%clk 00:42:04]} {[%emt 00:00:07]} 20. Bxf6+ {[%clk 00:49:21]} {[%emt
00:01:56]} Nxf6 {[%clk 00:42:05]} {[%emt 00:00:29]} 21. Nxe4 {[%clk 00:49:43]}
{[%emt 00:00:09]} Nxe4 {[%clk 00:42:15]} {[%emt 00:00:19]} 22. Rxe4 {[%clk
00:48:28]} {[%emt 00:01:46]} Rxe4 {[%clk 00:41:53]} {[%emt 00:00:52]} 23. Bxe4
{[%clk 00:48:52]} {[%emt 00:00:05]} Bg4 {[%clk 00:42:11]} {[%emt 00:00:12]} 24.
h3 {[%clk 00:47:28]} {[%emt 00:01:53]} Be6 {[%clk 00:41:29]} {[%emt 00:01:13]}
25. Rb1 {[%clk 00:47:22]} {[%emt 00:00:34]} b5 {[%clk 00:38:53]} {[%emt
00:03:07]} 26. Rxb5 {[%clk 00:46:02]} {[%emt 00:01:50]} cxb5 {[%clk 00:39:16]}
{[%emt 00:00:07]} 27. Bxa8 {[%clk 00:46:22]} {[%emt 00:00:11]} Qxa3 {[%clk
00:39:28]} {[%emt 00:00:18]} 28. d5 {[%clk 00:46:03]} {[%emt 00:00:43]} Bf5
{[%clk 00:37:35]} {[%emt 00:02:29]} 29. Qd2 {[%clk 00:45:55]} {[%emt 00:00:35]}
Qc5 {[%clk 00:37:57]} {[%emt 00:00:11]} 30. d6 {[%clk 00:44:14]} {[%emt
00:02:11]} Bd7 {[%clk 00:38:19]} {[%emt 00:00:08]} 31. g4 {[%clk 00:39:28]}
{[%emt 00:05:15]} a5 {[%clk 00:37:56]} {[%emt 00:00:54]} 32. g5 {[%clk
00:30:13]} {[%emt 00:09:45]} a4 {[%clk 00:35:47]} {[%emt 00:02:40]} 33. Qd4+
{[%clk 00:25:02]} {[%emt 00:05:41]} Qxd4 {[%clk 00:35:45]} {[%emt 00:00:31]} 34.
cxd4 {[%clk 00:25:30]} {[%emt 00:00:03]} Kf8 {[%clk 00:34:07]} {[%emt
00:02:08]} 35. Be4 {[%clk 00:24:19]} {[%emt 00:01:40]} a3 {[%clk 00:33:55]}
{[%emt 00:00:43]} 36. Bb1 {[%clk 00:24:25]} {[%emt 00:00:23]} Be6 {[%clk
00:34:10]} {[%emt 00:00:16]} 37. Kf1 {[%clk 00:23:58]} {[%emt 00:00:57]} b4
{[%clk 00:34:33]} {[%emt 00:00:08]} 38. Ke2 {[%clk 00:15:31]} {[%emt 00:08:57]}
b3 {[%clk 00:34:54]} {[%emt 00:00:09]} 0-1